fUSD/lending_fUSD_20240508
["ID","MTS","AMOUNT","RATE_DAILY","PERIOD"]
[326643961,1715191860004,-1886.04,0.00021984,2]
[326643962,1715191860017,-1886.04,0.00021984,2]
[326643963,1715191860027,-151.0,0.00021985,7]
[326643964,1715191860037,-229.11904,0.00021985,7]
[326643965,1715191860046,-151.0,0.00021985,7]
[326643966,1715191860056,-151.0,0.00021985,7]
[326643967,1715191860065,-151.0,0.00021985,7]
[326643968,1715191860075,-153.309893,0.00021985,7]
[326643969,1715191860084,-153.309893,0.00021985,7]
[326643970,1715191860095,-153.309893,0.00021985,7]
[326643971,1715191860104,-153.309885,0.00021985,7]
[326643972,1715191860114,-198.608044,0.00021985,7]
[326643973,1715191860123,-198.608044,0.00021985,7]
[326643974,1715191860133,-198.608044,0.00021985,7]
[326643975,1715191860142,-198.608048,0.00021985,7]
[326643976,1715191860151,-285.925626,0.00021985,7]
[326643977,1715191860161,-285.925626,0.00021985,7]
[326643978,1715191860170,-285.925626,0.00021985,7]
[326643979,1715191860180,-285.925634,0.00021985,7]
[326643980,1715191860189,-453.302917,0.00021985,7]
[326643981,1715191860198,-453.302917,0.00021985,7]
[326643982,1715191860207,-453.302917,0.00021985,7]
[326643983,1715191860217,-453.302909,0.00021985,7]
[326643984,1715191860229,-151.0,0.00021985,7]
[326643985,1715191860239,-151.0,0.00021985,7]
[326643986,1715191860248,-151.0,0.00021985,7]
[326643987,1715191860258,-194.741382,0.00021985,7]
[326643988,1715191860268,-257.24917,0.00021985,7]
[326643989,1715191860277,-257.24917,0.00021985,7]
[326643990,1715191860287,-257.24917,0.00021985,7]
[326643991,1715191860296,-257.249173,0.00021985,7]
[326643992,1715191860306,-250.093283,0.00021985,7]
[326643993,1715191860316,-250.093283,0.00021985,7]
[326643994,1715191860325,-31887.1557307,0.00021985,2]
[326643995,1715191860335,-37661.2286911,0.00021985,2]
[326643996,1715191860344,-43435.3016515,0.00021985,2]
[326643997,1715191860354,-49209.3746119,0.00021985,2]
[326643998,1715191860363,-54983.4475723,0.00021985,2]
[326643999,1715191860445,-250.093283,0.00021985,7]
[326644000,1715191860456,-250.093276,0.00021985,7]
[326644001,1715191860466,-215.822161,0.00021985,7]
[326644002,1715191860475,-215.822161,0.00021985,7]
[326644003,1715191860485,-215.822161,0.00021985,7]
[326644004,1715191860495,-215.82217,0.00021985,7]
[326644005,1715191860504,-8197.5817748,0.00021985,2]
[326644006,1715191860514,-9681.986206,0.00021985,2]
[326644007,1715191860525,-11166.3906373,0.00021985,2]
[326644008,1715191860535,-12650.7950685,0.00021985,2]
[326644009,1715191860544,-14135.1994998,0.00021985,2]
[326644010,1715191860555,-333.761446,0.00021985,7]
[326644011,1715191860564,-333.761446,0.00021985,7]
[326644012,1715191860574,-3767.9256843,0.00021985,2]
[326644013,1715191860584,-4450.215381,0.00021985,2]
[326644014,1715191860594,-5132.5050777,0.00021985,2]
[326644015,1715191860603,-333.761446,0.00021985,7]
[326644016,1715191860613,-5814.7947743,0.00021985,2]
[326644017,1715191860622,-333.761445,0.00021985,7]
[326644018,1715191860632,-6497.084471,0.00021985,2]
[326644019,1715191860641,-154.776194,0.00021985,7]
[326644020,1715191860650,-154.776194,0.00021985,7]
[326644021,1715191860660,-154.776194,0.00021985,7]
[326644022,1715191860670,-154.776189,0.00021985,7]
[326644023,1715191860679,-10632.0950222,0.00021985,2]
[326644024,1715191860688,-11248.783346,0.00021985,2]
[326644025,1715191860698,-11865.4716699,0.00021985,2]
[326644026,1715191860707,-12482.1599937,0.00021985,2]
[326644027,1715191860717,-13098.8483175,0.00021985,2]
[326644028,1715191860726,-181.475129,0.00021985,7]
[326644029,1715191860736,-239.63431,0.00021985,7]
[326644030,1715191860746,-181.47512,0.00021985,7]
[326644031,1715191860755,-239.63431,0.00021985,7]
[326644032,1715191860765,-151.0,0.00021985,5]
[326644033,1715191860774,-19540.7189125,0.00021985,2]
[326644034,1715191860783,-151.0,0.00021985,7]
[326644035,1715191860794,-20674.1298881,0.00021985,2]
[326644036,1715191860803,-21807.5408638,0.00021985,2]
[326644037,1715191860813,-22940.9518394,0.00021985,2]
[326644038,1715191860823,-24074.3628151,0.00021985,2]
[326644039,1715191860832,-599.599126,0.00021985,7]
[326644040,1715191860842,-2684.697006,0.00021985,7]
[326644041,1715191860853,-599.599128,0.00021985,7]
[326644042,1715191860863,-2684.697,0.00021985,7]
[326644043,1715191860874,-1842.8896248,0.00021985,2]
[326644044,1715191860884,-1949.7818706,0.00021985,2]
[326644045,1715191860894,-2056.6741163,0.00021985,2]
[326644046,1715191860903,-2163.566362,0.00021985,2]
[326644047,1715191860913,-2270.4586077,0.00021985,2]
[326644048,1715191860923,-151.0,0.00021985,7]
[326644049,1715191860935,-151.0,0.00021985,7]
[326644050,1715191860945,-3393.4995668,0.00021985,2]
[326644051,1715191860955,-3590.3310996,0.00021985,2]
[326644052,1715191860967,-3787.1626324,0.00021985,2]
[326644053,1715191860976,-3983.9941651,0.00021985,2]
[326644054,1715191860986,-4180.8256979,0.00021985,2]
[326644055,1715191860996,-2661.0,0.00021989,15]
[326644056,1715191861007,-201.0,0.00021989,15]
[326644057,1715191861018,-3265.0,0.00021989,15]
[326644058,1715191861027,-240.0,0.00021989,15]
[326644059,1715191861037,-328.96834259,0.0002199,2]
[326644060,1715191861048,-334.41014425,0.00021998,2]
[326644061,1715191861059,-162.07402568,0.00021998,2]
[326644062,1715191861068,-156.85703674,0.00021998,2]
[326644063,1715191861079,-307.73444087,0.00021998,2]
[326644064,1715191861091,-155.15285508,0.00021998,2]
[326644065,1715191861101,-1689.39622746,0.00021998,2]
[326644066,1715191861110,-174.84052728,0.00021999,2]
[326644067,1715191861120,-910.31430666,0.00021999,2]
[326644068,1715191861130,-500.0,0.00021999,2]
[326644069,1715191861140,-500.0,0.00021999,2]
[326644070,1715191861150,-500.0,0.00021999,2]
[326644071,1715191861160,-500.0,0.00021999,2]
[326644072,1715191861169,-500.0,0.00021999,2]
[326644073,1715191861179,-500.0,0.00021999,2]
[326644074,1715191861190,-500.0,0.00021999,2]
[326644075,1715191861200,-597.75549873,0.00021999,2]
[326644076,1715191861210,-1886.04,0.00021999,2]
[326644077,1715191861220,-1886.04,0.00021999,2]
[326644078,1715191861229,-1886.04,0.00021999,2]
[326644079,1715191861239,-1886.04,0.00021999,2]
[326644080,1715191861248,-1886.04,0.00021999,2]
[326644081,1715191861259,-1886.04,0.00021999,2]
[326644082,1715191861268,-1886.04,0.00021999,2]
[326644083,1715191861278,-1886.04,0.00021999,2]
[326644084,1715191861287,-1886.04,0.00021999,2]
[326644085,1715191861297,-1886.04,0.00021999,2]
[326644086,1715191861310,-1886.04,0.00021999,2]
[326644087,1715191861319,-1886.08159,0.00021999,2]
[326644088,1715191861329,-447305.43950227,0.00022,5]
[326644089,1715191861346,-1360837.40401406,0.00022,5]
[326644090,1715191863544,-704.62,0.00020915,2]
[326644091,1715191863553,-335.532939,0.00021565,2]
[326644092,1715191863563,-273.41859853,0.00021802,2]
[326644093,1715191863575,-62.11434047,0.00021802,2]
[326644094,1715191863585,-229.33159062,0.000219,2]
[326644095,1715191863595,-335.532939,0.000219,2]
[326644096,1715191863605,-335.532939,0.00021954,7]
[326644097,1715191863614,-554.04924,0.00021954,7]
[326644098,1715191863624,-335.532939,0.00021954,7]
[326644099,1715191863633,-335.532939,0.00021969,7]
[326644100,1715191863643,-554.04924,0.00021969,7]
[326644101,1715191863652,-335.532939,0.00021969,7]
[326644102,1715191863662,-80.04089391,0.00021975,7]
[326644110,1715192858074,-8359.13953205,0.00014825,2]
[326644111,1715192858100,-20540.6,0.00014826,2]
[326644112,1715192932126,179.9588821,0.00014826,2]
[326644113,1715192945165,179.9588821,0.00014826,2]
[326644123,1715192964579,179.9588821,0.00014826,2]
[326644125,1715192981648,160.63582405,0.00014826,2]
[326644126,1715193036573,-1031.15378598,0.00017059,2]
[326644131,1715193036582,-904.43473316,0.00017158,2]
[326644133,1715193036592,-300.0,0.00017159,2]
[326644136,1715193036601,-198.49174509,0.00017259,2]
[326644139,1715193036610,-71.37889139,0.00017306,2]
[326644142,1715193036621,-85.0171718,0.00017306,2]
[326644145,1715193036631,-333.7194645,0.00018,3]
[326644148,1715193036642,-716.2805355,0.00018,3]
[326644151,1715193036651,-154.17335256,0.00018001,2]
[326644153,1715193036660,-176.24045042,0.00018363,2]
[326644155,1715193036669,-5000.0,0.00019,2]
[326644157,1715193036678,-177.74903878,0.00019141,2]
[326644159,1715193036688,-158.88,0.00019178,2]
[326644161,1715193036714,-274.22,0.00019178,2]
[326644162,1715193036728,-8127.0,0.00019726,2]
[326644165,1715193036738,-155.91436645,0.00019798,5]
[326644167,1715193036748,-8359.13953205,0.00019999,2]
[326644168,1715193036757,-1100.0,0.0002,3]
[326644170,1715193036768,-1770.43044414,0.0002,2]
[326644172,1715193036778,-172.17,0.00020212,2]
[326644174,1715193036788,-162.58,0.00020334,2]
[326644176,1715193036797,-632.73,0.00020422,2]
[326644178,1715193036807,-3328.52,0.00020433,2]
[326644180,1715193036816,-172.94,0.00020449,2]
[326644182,1715193036826,-171.63,0.00020476,2]
[326644183,1715193036836,-165.58,0.00020478,2]
[326644184,1715193036845,-11356.9886,0.000209,2]
[326644185,1715193036855,-293.54017198,0.00020998,2]
[326644187,1715193036865,-320.52394208,0.00021,2]
[326644189,1715193036874,-172.28,0.0002101,2]
[326644191,1715193036884,-1046.1,0.00021178,2]
[326644193,1715193036894,-419.95,0.00021178,2]
[326644195,1715193036903,-150.0,0.00021178,2]
[326644197,1715193036913,-163.16,0.00021178,2]
[326644199,1715193036922,-427.05,0.00021178,2]
[326644201,1715193036934,-301.08,0.00021178,2]
[326644203,1715193036944,-1046.1,0.00021178,2]
[326644204,1715193036954,-2601.18658437,0.00021536,2]
[326644206,1715193036963,-161.11,0.00021589,15]
[326644208,1715193036973,-1561.86172371,0.00021693,2]
[326644210,1715193036983,-750.5394,0.000217,2]
[326644212,1715193036992,-1000.0,0.000217,2]
[326644214,1715193037002,-10000.0,0.00021702,2]
[326644215,1715193037011,-103.24312192,0.00021713,2]
[326644217,1715193039156,-2996.75687808,0.00021713,2]
[326644219,1715193039166,-84.84312189,0.00021778,2]
[326644246,1715193042600,-378.92406554,0.00021778,2]
[326644247,1715193042610,-1820.16346406,0.0002178,2]
[326644248,1715193046324,-29.05092034,0.0002178,2]
[326644253,1715193046333,-414.79,0.00021788,2]
[326644259,1715193046343,-3709.258521,0.000218,2]
[326644264,1715193046354,-946.68280564,0.000218,2]
[326644267,1715193046366,-2844.05867336,0.000218,2]
[326644270,1715193046375,-314.32695259,0.000218,2]
[326644273,1715193046385,-227.0220039,0.000218,2]
[326644277,1715193046409,-500.0,0.00021807,2]
[326644279,1715193046418,-200.0,0.00021809,2]
[326644281,1715193046428,-227.0220039,0.00021811,2]
[326644283,1715193046439,-200.0,0.00021813,2]
[326644285,1715193046451,-1000.0,0.00021813,2]
[326644287,1715193046461,-500.0,0.00021813,2]
[326644288,1715193046471,-200.0,0.00021813,2]
[326644289,1715193046482,-500.0,0.00021817,2]
[326644290,1715193046492,-500.0,0.00021821,2]
[326644291,1715193046503,-500.0,0.00021822,2]
[326644292,1715193046513,-227.0220039,0.00021822,2]
[326644293,1715193046523,-3498.41744702,0.00021825,2]
[326644294,1715193046533,-500.0,0.0002183,2]
[326644295,1715193046543,-227.0220039,0.00021833,2]
[326644296,1715193046553,-500.0,0.00021838,2]
[326644297,1715193046562,-227.0220039,0.00021844,2]
[326644298,1715193046572,-500.0,0.00021847,2]
[326644299,1715193046583,-314.32695259,0.0002185,2]
[326644300,1715193046593,-227.0220039,0.00021856,2]
[326644301,1715193046602,-500.0,0.00021856,2]
[326644302,1715193046612,-500.0,0.00021865,2]
[326644303,1715193046622,-500.0,0.00021874,2]
[326644304,1715193046632,-500.0,0.00021882,2]
[326644305,1715193046643,-500.0,0.00021891,2]
[326644306,1715193046653,-500.0,0.00021899,2]
[326644307,1715193046663,-500.0,0.00021899,2]
[326644308,1715193046673,-405860.13204061,0.000219,2]
[326644309,1715193046683,-500.0,0.000219,2]
[326644310,1715193046694,-10117.98303871,0.000219,2]
[326644311,1715193046704,-1000.0,0.000219,2]
[326644312,1715193046714,-6762.66945982,0.000219,2]
[326644313,1715193046724,-314.32695259,0.000219,2]
[326644314,1715193046734,-203.03478331,0.000219,2]
[326644315,1715193046744,-500.0,0.00021917,2]
[326644316,1715193046754,-448.33896507,0.00021917,2]
[326644317,1715193046763,-250.0,0.00021918,2]
[326644318,1715193046773,-250.0,0.00021918,2]
[326644319,1715193046783,-155.0,0.00021975,2]
[326644320,1715193046792,-205.10830577,0.00021978,2]
[326644321,1715193046801,-1228.01655721,0.00021978,2]
[326644322,1715193046811,-153.16,0.0002199,2]
[326644323,1715193046821,-153.16,0.0002199,2]
[326644324,1715193046831,-153.16,0.0002199,2]
[326644325,1715193046841,-887.34537112,0.00021998,2]
[326644326,1715193046850,-5859.3084292,0.00021998,2]
[326644327,1715193046859,-155.0,0.00021998,2]
[326644328,1715193046869,-5179.40318608,0.00021998,2]
[326644329,1715193046879,-366.80411132,0.00021998,2]
[326644330,1715193046888,-155.49087749,0.00021999,2]
[326644331,1715193046898,-260.2599555,0.00021999,2]
[326644332,1715193046907,-179.92865108,0.00021999,2]
[326644333,1715193046917,-2005.72732,0.00021999,2]
[326644334,1715193046926,-1408.0,0.00022,2]
[326644335,1715193046937,-60926.63795068,0.00022,7]
[326644336,1715193046947,-1060919.44374241,0.00022,5]
[326644337,1715193046960,-12598.27893139,0.00022,5]
[326644338,1715193046972,-756.42499999,0.00022,5]
[326644339,1715193053253,-227.0220039,0.00021867,2]
[326644341,1715193053263,-500.0,0.00021899,2]
[326644342,1715193053275,-273.45184624,0.00021899,2]
[326644343,1715193053285,-881.03614986,0.00021998,2]
[326644344,1715193062447,676.62448297,0.00014826,2]
[326644345,1715193066563,384.81399503,0.00014826,2]
[326644346,1715193113682,300.0,0.00016959,2]
[326644353,1715193229961,8038.3095196,0.00013,2]
[326644372,1715194238176,-265.440746,9.999e-05,2]
[326644415,1715194241583,-1517.50982453,9.999e-05,2]
[326644422,1715194241595,-586.27968751,9.999e-05,2]
[326644424,1715194241607,-479.23585153,9.999e-05,2]
[326644426,1715194241618,-1978.40158812,9.999e-05,2]
[326644429,1715194241629,-504.21309168,9.999e-05,2]
[326644430,1715194241641,-370.16894165,9.999e-05,2]
[326644445,1715194253633,-754.3,9.999e-05,2]
[326644447,1715194253646,-1903.58980103,9.999e-05,2]
[326644449,1715194253657,-513.24234472,0.0001,2]
[326644451,1715194253668,-91.55185425,0.0001,7]
[326644453,1715194253681,-480.86765142,0.0001,7]
[326644455,1715194253693,-473.61875802,0.0001,2]
[326644457,1715194253703,-1138.33613275,0.0001251,2]
[326644459,1715194253712,-461039.41511293,0.00013,2]
[326644461,1715194253725,-50760.65422033,0.00013,2]
[326644463,1715194253734,-60162.69454317,0.00013,2]
[326646367,1715194916665,-11206.0,0.00029228,30]
[326646368,1715194918985,-10000.00617068,0.00029228,120]
[326646369,1715194922657,-1000.0,0.00029228,120]
[326646370,1715194922722,-88914.07343141,0.00029228,30]
[326646371,1715194922787,-2021.33413493,0.00029228,30]
[326646372,1715194922853,-1000.0,0.00029228,30]
[326646373,1715194922915,-4322.43798533,0.00029228,30]
[326646374,1715194922978,-1591.47829482,0.00029228,30]
[326646375,1715194923041,-3606.09322752,0.00029228,30]
[326646376,1715194923110,-2068.86918508,0.00029228,30]
[326646377,1715194923175,-2230.28477225,0.00029228,30]
[326646378,1715194923241,-534.78500406,0.00029228,120]
[326646379,1715194923306,-686.0,0.00029228,30]
[326646380,1715194923394,-969.0,0.00029228,30]
[326646381,1715194923483,-168.823646,0.00029228,30]
[326646382,1715194923551,-41158.46632827,0.00029228,120]
[326646383,1715194937357,-170.65,0.00025475,120]
[326646384,1715194937429,-172.2,0.00026645,120]
[326646385,1715194937669,-155.06118205,0.00027616,30]
[326646386,1715194937734,-170.56730027,0.00027616,30]
[326646387,1715194939863,-155.06118205,0.00027781,30]
[326646388,1715194942380,-10000.0,0.000279,30]
[326646389,1715194944621,-155.06118205,0.00027945,30]
[326646390,1715194946454,-338.53062545,0.00028,30]
[326646391,1715194948349,-10000.0,0.00028,30]
[326646392,1715194949883,-500.0,0.00028,120]
[326646393,1715194949955,-170.56730027,0.00028027,30]
[326646394,1715194952964,-155.06118205,0.0002811,30]
[326646395,1715194954456,-155.06118205,0.00028274,30]
[326646396,1715194955980,-155.06118205,0.00028438,30]
[326646397,1715194956680,-170.56730027,0.00028438,30]
[326646398,1715194957330,-500.0,0.000285,120]
[326646399,1715194957967,-155.06118205,0.00028603,30]
[326646400,1715194959869,-155.06118205,0.00028767,30]
[326646401,1715194961278,-170.56730027,0.00028849,30]
[326646402,1715194963542,-155.06118205,0.00028932,30]
[326646403,1715194964256,-500.0,0.00029,31]
[326646404,1715194964329,-900.0,0.00029,30]
[326646405,1715194966399,-500.0,0.00029,120]
[326646406,1715194967480,-155.06118205,0.00029096,30]
[326646407,1715194967544,-155.06118205,0.00029233,30]
[326646408,1715194967608,-170.56730027,0.00029233,30]
[326646409,1715194967672,-500.0,0.000295,120]
[326646410,1715194967754,-3012.3,0.000298,30]
[326646411,1715194967819,-325690.36294029,0.0003,30]
[326646412,1715194967881,-3000.0,0.0003,120]
[326646413,1715194967943,-2011.66,0.0003,120]
[326646414,1715194968007,-900.0,0.0003,31]
[326646415,1715194968069,-2563.0,0.0003,30]
[326646416,1715194968132,-1345.25767558,0.0003,30]
[326646417,1715194968970,-500.0,0.0003,120]
[326646418,1715194971015,-469.87431229,0.0003,120]
[326646419,1715194971094,-832.13626007,0.0003,120]
[326646420,1715194971178,-385.0,0.00030234,120]
[326646421,1715194971249,-150.0,0.000305,30]
[326646422,1715194971320,-170.65,0.0003057,120]
[326646423,1715194971388,-1208.0,0.00030577,30]
[326646424,1715194971454,-10000.0,0.000306,30]
[326646425,1715194971536,-385.0,0.00030827,120]
[326646426,1715194973209,-900.0,0.00031,32]
[326646427,1715194975529,-500.0,0.00031,120]
[326646428,1715194978522,-10000.0,0.000312,30]
[326646429,1715194978597,-385.0,0.0003142,120]
[326646430,1715194978660,-500.0,0.000315,120]
[326646431,1715194978720,-184.09,0.00031506,120]
[326646432,1715194978793,-7500.0,0.000319,30]
[326646433,1715194978858,-172.2,0.00031974,120]
[326646434,1715194978919,-900.0,0.00032,33]
[326646435,1715194978980,-500.0,0.00032,120]
[326646436,1715194979045,-435.90563906,0.00032,120]
[326646437,1715194979105,-385.0,0.00032012,120]
[326646438,1715194979176,-500.0,0.000325,120]
[326646439,1715194979237,-385.0,0.00032605,120]
[326646440,1715194979298,-10000.0,0.000328,30]
[326646441,1715194979361,-750.0,0.00032876,30]
[326646442,1715194979426,-750.0,0.00032876,30]
[326646443,1715194979741,-750.0,0.00032876,30]
[326646444,1715194980881,-750.0,0.00032876,30]
[326646445,1715194982088,-770.96411652,0.00032876,30]
[326646446,1715194983530,-2000.0,0.00032876,90]
[326646447,1715194984897,-2000.0,0.00032876,90]
[326646448,1715194986170,-2000.0,0.00032876,90]
[326646449,1715194987552,-2000.0,0.00032876,90]
[326646450,1715194988319,-2000.0,0.00032876,90]
[326646451,1715194988387,-2000.0,0.00032876,90]
[326646452,1715194988456,-2000.0,0.00032876,90]
[326646453,1715194988525,-2000.0,0.00032876,90]
[326646454,1715194988596,-197.89,0.00032876,90]
[326646455,1715194988703,-158.63079547,0.000329,30]
[326646456,1715194988780,-900.0,0.00033,34]
[326646457,1715194988850,-157.71922568,0.00033,120]
[326646458,1715194988920,-385.0,0.00033198,120]
[326646459,1715194988987,-10000.0,0.000333,30]
[326646460,1715194989064,-10000.0,0.000336,30]
[326646461,1715194989777,-385.0,0.00033791,120]
[326646462,1715194989861,-900.0,0.00034,35]
[326646463,1715194989929,-385.0,0.00034384,120]
[326646464,1715194990001,-10000.0,0.000344,30]
[326646465,1715194990071,-150.0,0.00034485,120]
[326646466,1715194990153,-7500.0,0.000349,30]
[326646467,1715194990528,-385.0,0.00034976,120]
[326646468,1715194991224,-899.54020778,0.0003498,30]
[326646469,1715194991988,-183.67750468,0.00034999,120]
[326646470,1715194992060,-900.0,0.00035,36]
[326646471,1715194992627,-450.0,0.0003502,30]
[326646472,1715194993280,-386.95131363,0.00035569,120]
[326646473,1715194994048,-2102.08168171,0.000356,30]
[326646474,1715194995831,-1000.0,0.00035616,30]
[326646475,1715194997217,-3000.0,0.00036,50]
[326646476,1715195000757,-950.0,0.00036,80]
[326646477,1715195000830,-1000.0,0.00036164,30]
[326646478,1715195000898,-1266.85001961,0.00036498,36]
[326646479,1715195000963,-3000.0,0.000365,52]
[326646480,1715195001028,-3000.0,0.000365,53]
[326646481,1715195001094,-3000.0,0.000365,54]
[326646482,1715195001159,-3000.0,0.000365,51]
[326646483,1715195001223,-3000.0,0.000365,50]
[326646484,1715195001288,-1671.22,0.000365,60]
[326646485,1715195001355,-500000.0,0.000365,30]
[326646486,1715195001427,-1000.0,0.00036712,30]
[326646487,1715195001492,-445.82202784,0.00037,30]
[326646488,1715195001558,-10035.31,0.00037,30]
[326646489,1715195001625,-2641.0,0.00037,60]
[326646490,1715195001719,-150.0,0.00037158,120]
[326646491,1715195001787,-1000.0,0.0003726,30]
[326646492,1715195001852,-10000.0,0.000374,30]
[326646493,1715195001915,-450.0,0.000375,30]
[326646494,1715195001988,-1000.0,0.00037808,30]
[326646495,1715195002058,-7500.0,0.000379,30]
[326646496,1715195002121,-24392.49159843,0.00037999,30]
[326646497,1715195002185,-950.0,0.00038,100]
[326646498,1715195002250,-523.67392726,0.00038,30]
[326646499,1715195002315,-22990.2454355,0.00038,90]
[326646500,1715195002387,-320.0,0.00038,120]
[326646501,1715195002453,-199.27450638,0.0003816,30]
[326646502,1715195002520,-2000.0,0.00038356,120]
[326646503,1715195002586,-2000.0,0.00038356,120]
[326646504,1715195002652,-2000.0,0.00038356,120]
[326646505,1715195002717,-2000.0,0.00038356,120]
[326646506,1715195002782,-2000.0,0.00038356,120]
[326646507,1715195002847,-2000.0,0.00038356,120]
[326646508,1715195002910,-2000.0,0.00038356,120]
[326646509,1715195002974,-2000.0,0.00038356,120]
[326646510,1715195003036,-2000.0,0.00038356,120]
[326646511,1715195004129,-2000.0,0.00038356,120]
[326646512,1715195005420,-359.71805363,0.00038356,120]
[326646513,1715195006141,-1000.0,0.00038356,30]
[326646514,1715195007962,-1734.14452628,0.000384,33]
[326646515,1715195009344,-572.65144699,0.00038475,120]
[326646516,1715195010624,-3700.0,0.000385,120]
[326646517,1715195011299,-882.86058874,0.000389,30]
[326646518,1715195012521,-151.132828,0.000389,31]
[326646519,1715195013343,-1000.0,0.00038904,30]
[326646520,1715195013408,-1000.0,0.00038904,120]
[326646521,1715195013471,-663.45398032,0.00039,120]
[326646522,1715195013554,-2000.0,0.00039,60]
[326646523,1715195013618,-979.52182823,0.00039,30]
[326646524,1715195013684,-2000.0,0.00039,30]
[326646525,1715195013755,-1000.0,0.00039452,30]
[326646526,1715195013820,-3041.66651,0.000395,120]
[326646527,1715195013885,-2764.0,0.000396,120]
[326646528,1715195013951,-459.12847989,0.000397,60]
[326646529,1715195014110,-771.1847169,0.0003987,30]
[326646530,1715195015073,-674.19536362,0.0003998,30]
[326646531,1715195015690,-1000.0,0.0004,30]
[326646532,1715195016838,-26016.35454,0.0004,44]
[326646533,1715195017544,-194.1519555,0.0004,120]
[326646534,1715195018199,-308.01992037,0.0004,60]
[326646535,1715195019403,-950.0,0.0004,120]
[326646536,1715195022193,-199.999999,0.0004,30]
[326646537,1715195022857,-3273.35882136,0.0004,30]
[326646538,1715195025563,-500.0,0.0004,120]
[326646539,1715195027465,-2878.7514067,0.0004,30]
[326646540,1715195028979,-394.15021194,0.0004,30]
[326646541,1715195030504,-367.26299635,0.0004,30]
[326646542,1715195033110,-157.94863373,0.0004,30]
[326646543,1715195035108,-1025.81689689,0.0004,120]
[326646544,1715195037579,-741.44577528,0.0004,30]
[326646545,1715195040272,-604.39401281,0.0004,120]
[326646546,1715195042851,-320.08525693,0.0004,30]
[326646547,1715195045258,-2000.0,0.0004,30]
[326646548,1715195045920,-10104.71515087,0.0004,120]
[326646549,1715195046541,-166.26,0.0004,120]
[326646550,1715195046609,-5206.45285944,0.0004,30]
[326646551,1715195046677,-311.0,0.0004,30]
[326646552,1715195046746,-1000.0,0.0004,120]
[326646553,1715195046819,-882.11529631,0.0004,30]
[326646554,1715195046889,-1000.0,0.0004,60]
[326646555,1715195047611,-24268.89046576,0.0004,60]
[326646556,1715195048316,-201.58102916,0.0004,30]
[326646557,1715195050374,-1303.44981476,0.0004,50]
[326646558,1715195054004,-1010.0,0.0004,120]
[326646559,1715195056129,-7201.42717335,0.0004,120]
[326646560,1715195057443,-3402.9407,0.0004,120]
[326646561,1715195058122,-3116.30686944,0.0004,120]
[326646562,1715195060891,-953.63422359,0.0004,90]
[326646563,1715195062186,-3121.89,0.0004,120]
[326646564,1715195062845,-314.72,0.0004,120]
[326646565,1715195064659,-297.89799501,0.0004001,30]
[326646566,1715195065258,-419.83997335,0.00040095,120]
[326646567,1715195065339,-10653.85184268,0.000402,120]
[326646568,1715195065412,-10653.85184268,0.000402,120]
[326646569,1715195065482,-10653.85184268,0.000402,120]
[326646570,1715195065556,-10653.85184268,0.000402,120]
[326646571,1715195065626,-10653.85184268,0.000402,120]
[326646572,1715195065696,-2905.1,0.00040327,79]
[326646573,1715195065768,-215.35979123,0.000405,30]
[326646574,1715195065838,-287.45392471,0.000405,120]
[326646575,1715195065903,-1041.344,0.00040704,30]
[326646576,1715195065970,-1180.14915975,0.000409,60]
[326646577,1715195066039,-7500.0,0.000409,30]
[326646578,1715195066107,-822.70136939,0.00040993,120]
[326646579,1715195066176,-587.17173335,0.00040996,120]
[326646580,1715195066245,-500.0,0.00041,60]
[326646581,1715195066313,-950.0,0.00041,120]